{"text_format":"1","workbook":"xlsx","n_sheets":3,"sheets":["【調査票 07】乳児院","data","02【調査票 07】乳児院(2)"],"not_rendered":{"charts":0,"images":1,"macros":1,"external_links":0,"defined_names":1,"comments":0,"pivot_tables":0},"unopened":[],"bounds":{"document_bytes":16777216,"sheet_cells":100000,"rows_first":2000,"rows_last":500,"rows_between":2000,"halvings":0,"cell_chars":16384,"cell_head_chars":4096},"cells_cut":0,"cells_raw":0,"read":"whole","date_system":"1900"}

{"sheet":"【調査票 07】乳児院","index":0,"n_rows":100,"n_cols":84,"rows_kept":100,"cut":false,"hidden":false,"merged":[[73,68,73,71],[20,73,20,76],[72,24,72,34],[15,38,15,45],[15,68,15,75],[34,43,34,55],[12,77,12,93],[15,49,15,52],[15,79,15,82],[8,34,10,38],[8,39,10,42],[8,20,10,23],[8,68,10,74],[9,77,9,93],[0,1,0,93],[1,0,2,16],[4,1,4,93],[5,1,5,93],[8,1,10,9],[8,10,10,15],[8,16,10,19],[8,24,10,27],[8,28,10,33],[60,1,72,15],[14,1,43,3],[15,4,15,15],[15,30,15,35],[15,60,15,65],[17,4,21,15],[22,4,22,15],[24,4,36,15],[39,4,41,15],[43,4,43,15],[45,1,58,3],[45,4,57,15],[45,36,49,46],[51,36,57,46],[58,4,58,15],[88,1,90,15],[76,1,78,15],[76,42,76,52],[77,42,77,52],[78,42,78,52],[80,1,82,15],[84,1,84,15],[85,1,85,15]]}
[null,"令和４年度児童養護施設入所児童等調査"]
[]
[]
[]
[null,"乳児院入所児童票"]
[null,"（令和５年２月１日現在）"]
[null,"　　　　　　　　　　　　　　　　　　　　　　　　　　　　　　　　　　　　　　　"]
[]
[null,"都道府県\n指定都市\n中核市\n児童相談所設置市\n（番号）",null,null,null,null,null,null,null,null,null,null,null,null,null,null,"施設\n\n番号",null,null,null,null,null,null,null,"児童\n\n番号",null,null,null,null,null,null,null,null,null,"調査票\n\n種別",null,null,null,null,"７",null,null,null,null,null,null,null,null,null,null,null,null,null,null,null,null,null,null,null,null,null,null,null,null,null,null,null,null,"都道府県\n指定都市\n中 核 市\n児童相談所設置市\n（名称）\n"]
[]
[]
[]
[null,null,null,null,null,null,null,null,null,null,null,null,null,null,null,null,null,null,null,null,null,null,null,null,null,null,null,null,null,null,null,null,null,null,null,null,null,null,null,null,null,null,null,null,null,null,null,null,null,null,null,null,null,null,null,null,null,null,null,null,null,null,null,null,null,null,null,null,"施設の名称"]
[]
[null,"児童の現在の状況"]
[null,null,null,null,"(1)\n性別",null,null,null,null,null,null,null,null,null,null,null,null,null,"0",null,null,null,null,null,null,null,null,null,null,null,"(2)\n出生年月",null,null,null,null,null,null,"西暦",null,null,null,null,null,null,null,null,"年",null,null,null,null,null,null,"月",null,null,null,null,null,null,"(3)\n入所年月",null,null,null,null,null,null,"西暦",null,null,null,null,null,null,null,null,"年",null,null,null,null,null,null,"月"]
[]
[null,null,null,null,"(4)\n入所経路"]
[]
[]
[null,null,null,null,null,null,null,null,null,null,null,null,null,null,null,null,null,null,null,null,null,null,null,null,null,null,null,null,null,null,null,null,null,null,null,null,null,null,null,null,null,null,null,null,null,null,null,null,null,null,null,null,null,null,null,null,null,null,null,null,null,null,null,null,null,null,null,null,null,null,null,null,null,null,null,null,null,")"]
[]
[null,null,null,null,"(5)\n出生時の状況",null,null,null,null,null,null,null,null,null,null,null,null,null,null,null,null,null,null,null,null,null,null,null,"異常（",null,null,null,null,null,null,null,null,null,null,null,null,null,null,null,null,null,null,null,null,null,null,null,null,null,")"]
[]
[null,null,null,null,"(6)\n心身の状況\n\n(複数回答可)",null,null,null,null,null,null,null,null,null,null,null,null,null,false]
[]
[null,null,null,null,null,null,null,null,null,null,null,null,null,null,null,null,null,null,false,null,null,null,null,null,null,null,null,null,null,null,null,null,null,null,false,null,null,null,null,null,null,null,null,null,null,null,null,null,null,false,null,null,null,null,null,null,null,null,null,null,null,null,null,false]
[]
[null,null,null,null,null,null,null,null,null,null,null,null,null,null,null,null,null,null,false,null,null,null,null,null,null,null,null,null,null,null,null,null,null,null,false,null,null,null,null,null,null,null,null,null,null,null,null,null,null,false,null,null,null,null,null,null,null,null,null,null,null,null,null,false]
[]
[null,null,null,null,null,null,null,null,null,null,null,null,null,null,null,null,null,null,false,null,null,null,null,null,null,null,null,null,null,null,null,null,null,null,false,null,null,null,null,null,null,null,null,null,null,null,null,null,null,null,null,null,null,null,false]
[]
[null,null,null,null,null,null,null,null,null,null,null,null,null,null,null,null,null,null,false,null,null,null,null,null,null,null,null,null,null,null,null,null,null,null,null,null,null,null,null,null,null,null,false,null,null,null,null,null,null,null,false,null,null,null,null,null,null,null,null,null,null,null,null,false]
[]
[null,null,null,null,null,null,null,null,null,null,null,null,null,null,null,null,null,null,false,null,null,null,null,null,null,null,null,null,null,null,null,null,null,null,false,null,null,null,null,null,null,null,null,null,null,null,null,null,null,null,null,null,null,null,null,null,")"]
[]
[null,null,null,null,null,null,null,null,null,null,null,null,null,null,null,null,null,null,false]
[]
[]
[null,null,null,null,"(7)\n罹病傾向\n(複数回答可)",null,null,null,null,null,null,null,null,null,null,null,null,null,false,null,null,null,null,null,null,null,null,null,null,null,null,null,null,null,false,null,null,null,null,null,null,null,null,null,null,null,null,null,null,null,false,null,null,null,null,null,null,null,null,null,null,null,false]
[]
[null,null,null,null,null,null,null,null,null,null,null,null,null,null,null,null,null,null,false,null,null,null,null,null,null,null,null,null,null,null,null,null,null,null,false,null,null,null,null,null,null,null,null,null,null,null,null,null,null,null,false]
[]
[null,null,null,null,"(8)\n特に支援上\n留意している点\n(複数回答可)",null,null,null,null,null,null,null,null,null,null,null,null,null,false,null,null,null,null,null,null,null,null,null,null,null,null,false,null,null,null,null,null,null,null,null,null,null,null,false,null,null,null,null,null,null,null,false,null,null,null,null,null,null,null,null,null,false,null,null,null,null,null,null,null,null,null,null,null,false,null,null,null,null,null,null,null,null,null,false]
[]
[null,"入所時の家庭の状況",null,null,"(9)\n保護者の状況",null,null,null,null,null,null,null,null,null,null,null,null,null,null,null,null,null,null,null,null,null,null,null,null,null,null,null,null,null,null,null,"(9)の両親又は父母のどちらかありの補問"]
[]
[]
[]
[]
[]
[null,null,null,null,null,null,null,null,null,null,null,null,null,null,null,null,null,null,null,null,null,null,null,null,null,null,null,null,null,null,null,null,null,null,null,null,"(9)の両親ともいない又は不明の補問"]
[]
[]
[]
[]
[]
[]
[null,null,null,null,"(10)\n課税状況"]
[]
[null,"(11)\n養護問題発生理由\n\n（複数回答可）",null,null,null,null,null,null,null,null,null,null,null,null,null,null,null,null,false,null,null,null,null,null,null,null,null,null,false,null,null,null,null,null,null,null,null,null,null,false,null,null,null,null,null,null,null,null,null,null,null,false,null,null,null,null,null,null,null,null,null,null,null,false]
[]
[null,null,null,null,null,null,null,null,null,null,null,null,null,null,null,null,null,null,false,null,null,null,null,null,null,null,null,null,false,null,null,null,null,null,null,null,null,null,null,false,null,null,null,null,null,null,null,null,null,null,null,false,null,null,null,null,null,null,null,null,null,null,null,false]
[]
[null,null,null,null,null,null,null,null,null,null,null,null,null,null,null,null,null,null,false,null,null,null,null,null,null,null,null,null,false,null,null,null,null,null,null,null,null,null,null,null,null,null,null,null,null,null,null,null,null,null,null,false,null,null,null,null,null,null,null,null,null,null,null,false]
[]
[null,null,null,null,null,null,null,null,null,null,null,null,null,null,null,null,null,null,false,null,null,null,null,null,null,null,null,null,false,null,null,null,null,null,null,null,null,null,null,false,null,null,null,null,null,null,null,null,null,null,null,false,null,null,null,null,null,null,null,null,null,null,null,false]
[]
[null,null,null,null,null,null,null,null,null,null,null,null,null,null,null,null,null,null,false,null,null,null,null,null,null,null,null,null,null,null,null,null,null,null,null,null,null,null,null,false,null,null,null,null,null,null,null,null,null,null,null,false,null,null,null,null,null,null,null,null,null,null,null,false]
[]
[null,null,null,null,null,null,null,null,null,null,null,null,null,null,null,null,null,null,false,null,null,null,null,null,null,null,null,null,null,null,null,null,null,null,null,null,null,null,null,false,null,null,null,null,null,null,null,null,null,null,null,null,null,null,null,null,null,null,null,null,null,null,null,false]
[]
[null,null,null,null,null,null,null,null,null,null,null,null,null,null,null,null,null,null,false,null,null,null,null,null,null,null,null,null,null,null,null,null,null,null,null,")"]
[null,null,null,null,null,null,null,null,null,null,null,null,null,null,null,null,null,null,null,null,null,null,null,null,null,null,null,null,null,null,null,null,null,null,null,null,null,null,null,null,null,null,null,null,null,null,"選択したもののうち、主な理由１つ"]
[]
[]
[null,"(12)\n被虐待経験の状況",null,null,null,null,null,null,null,null,null,null,null,null,null,null,null,null,null,null,null,null,null,null,null,null,null,null,null,null,null,null,null,null,null,null,null,null,null,null,null,null,"(12)の補問",null,null,null,null,null,null,null,null,null,null,null,null,null,null,null,null,null,false,null,null,null,null,null,null,null,null,null,null,false]
[null,null,null,null,null,null,null,null,null,null,null,null,null,null,null,null,null,null,null,null,null,null,null,null,null,null,null,null,null,null,null,null,null,null,null,null,null,null,null,null,null,null,"　虐待の種類"]
[null,null,null,null,null,null,null,null,null,null,null,null,null,null,null,null,null,null,null,null,null,null,null,null,null,null,null,null,null,null,null,null,null,null,null,null,null,null,null,null,null,null,"（複数回答可）",null,null,null,null,null,null,null,null,null,null,null,null,null,null,null,null,null,false,null,null,null,null,null,null,null,null,null,null,false]
[]
[null,"(13)\n現在の家族との関係"]
[null,null,null,null,null,null,null,null,null,null,null,null,null,null,null,null,null,"交流あり　（　",null,null,null,null,null,null,null,null,null,null,null,null,null,null,null,null,null,null,null,null,null,null,null,null,null,null,null,null,null,null,null,null,null,null,null,null,null,")"]
[]
[]
[null,"(13)の補問"]
[null,"家族との交流の頻度"]
[]
[]
[null,"(14)\n児童の今後の見通し"]
[]
[]
[]
[]
[]
[]
[]
[]
[]
[]
[null,null,null,null,null,null,null,null,null,null,null,null,null,null,null,null,null,null,null,null,null,null,null,null,null,null,null,null,null,null,null,null,null,null,null,null,null,null,null,null,null,null,null,null,null,null,null,null,null,null,null,null,null,null,null,null,null,null,null,null,null,null,null,null,null,null,null,null,null,null,null,false]

{"sheet":"data","index":1,"n_rows":5,"n_cols":90,"rows_kept":5,"cut":false,"hidden":true,"merged":[[1,0,3,0],[2,1,3,1],[2,2,3,2],[2,3,3,3],[2,6,3,6],[2,4,3,4],[2,5,3,5],[1,1,1,6],[1,42,1,48],[2,42,2,48],[1,12,1,13],[2,12,3,12],[2,13,3,13],[2,14,3,14],[2,15,2,34],[1,15,1,34],[1,8,1,9],[2,8,2,9],[1,10,1,11],[1,35,1,41],[2,35,2,41],[2,7,3,7],[2,10,2,11],[2,82,3,82],[2,89,3,89],[2,87,3,87],[2,88,3,88],[1,49,1,51],[2,49,3,49],[2,50,3,50],[2,51,3,51],[2,52,3,52],[1,87,1,88],[1,53,1,81],[2,53,2,81],[1,82,1,86],[2,83,2,86]]}
[]
["項目","KEY番号",null,null,null,null,null,"質問１","質問２",null,"質問３",null,"質問４",null,"質問５","質問６",null,null,null,null,null,null,null,null,null,null,null,null,null,null,null,null,null,null,null,"質問７",null,null,null,null,null,null,"質問８",null,null,null,null,null,null,"質問９",null,null,"質問10","質問11",null,null,null,null,null,null,null,null,null,null,null,null,null,null,null,null,null,null,null,null,null,null,null,null,null,null,null,null,"質問12",null,null,null,null,"質問13",null,"質問14"]
[null,"都道府県・指定都市・中核市・児童相談所設置市番号","施設番号","児童番号","調査票種別","自治体名","施設名","性別","出生年月",null,"委託年月",null,"入所経路","具体的に","出生時の状況","心身の状況",null,null,null,null,null,null,null,null,null,null,null,null,null,null,null,null,null,null,null,"罹病傾向",null,null,null,null,null,null,"特に支援上留意している点",null,null,null,null,null,null,"保護者の状況","補問1","補問2","課税状況","養護問題発生理由",null,null,null,null,null,null,null,null,null,null,null,null,null,null,null,null,null,null,null,null,null,null,null,null,null,null,null,null,"被虐待経験の状況","補問",null,null,null,"現在の家族との関係","補問","児童の今後の見通し"]
[null,null,null,null,null,null,null,null,"年","月","年","月",null,null,null,"01","02","03","04","05","06","07","08","09","10","11","12","13","14","15","16","17","18","19","その他障害",1,2,3,4,5,6,7,"01","02","03","04","05","06","07",null,null,null,null,"01","02","03","04","05","06","07","08","09","10","11","12","13","14","15","16","17","18","19","20","21","22","23","24","25","26","27","その他フリーワード","補問",null,1,2,3,4]
["回答",{"$f":"'【調査票 07】乳児院'!$K$9","v":0},{"$f":"'【調査票 07】乳児院'!$U$9","v":0},{"$f":"'【調査票 07】乳児院'!$AC$9","v":0},{"$f":"'【調査票 07】乳児院'!$AN$9","v":"７"},{"$f":"'【調査票 07】乳児院'!$BZ$10","v":0},{"$f":"'【調査票 07】乳児院'!$BZ$13","v":0},{"$f":"'【調査票 07】乳児院'!$S$16","v":"0"},{"$f":"'【調査票 07】乳児院'!$AM$16","v":0},{"$f":"'【調査票 07】乳児院'!$AX$16","v":0},{"$f":"'【調査票 07】乳児院'!$BQ$16","v":0},{"$f":"'【調査票 07】乳児院'!$CB$16","v":0},{"$f":"'【調査票 07】乳児院'!$U$19","v":0},{"$f":"'【調査票 07】乳児院'!$BV$21","v":0},{"$f":"'【調査票 07】乳児院'!$S$23","v":0},{"$f":"IF('【調査票 07】乳児院'!$S$25=FALSE, 0,1)","v":0},{"$f":"IF('【調査票 07】乳児院'!$S$27=FALSE, 0,1)","v":0},{"$f":"IF('【調査票 07】乳児院'!$AI$27=FALSE,0,1)","v":0},{"$f":"IF('【調査票 07】乳児院'!$AX$27=FALSE,0,1)","v":0},{"$f":"IF('【調査票 07】乳児院'!$BL$27=FALSE,0,1)","v":0},{"$f":"IF('【調査票 07】乳児院'!$S$29=FALSE,0,1)","v":0},{"$f":"IF('【調査票 07】乳児院'!$AI$29=FALSE,0,1)","v":0},{"$f":"IF('【調査票 07】乳児院'!$AX$29=FALSE,0,1)","v":0},{"$f":"IF('【調査票 07】乳児院'!$BL$29=FALSE,0,1)","v":0},{"$f":"IF('【調査票 07】乳児院'!$S$31=FALSE,0,1)","v":0},{"$f":"IF('【調査票 07】乳児院'!$AI$31=FALSE,0,1)","v":0},{"$f":"IF('【調査票 07】乳児院'!$BC$31=FALSE,0,1)","v":0},{"$f":"IF('【調査票 07】乳児院'!$S$33=FALSE,0,1)","v":0},{"$f":"IF('【調査票 07】乳児院'!$AQ$33=FALSE,0,1)","v":0},{"$f":"IF('【調査票 07】乳児院'!$AY$33=FALSE,0,1)","v":0},{"$f":"IF('【調査票 07】乳児院'!$BL$33=FALSE,0,1)","v":0},{"$f":"IF('【調査票 07】乳児院'!$S$35=FALSE,0,1)","v":0},{"$f":"IF('【調査票 07】乳児院'!$AI$35=FALSE,0,1)","v":0},{"$f":"IF('【調査票 07】乳児院'!$S$37=FALSE,0,1)","v":0},{"$f":"'【調査票 07】乳児院'!$AR$35","v":0},{"$f":"IF('【調査票 07】乳児院'!$S$40=FALSE, 0,1)","v":0},{"$f":"IF('【調査票 07】乳児院'!$AI$40=FALSE,0,1)","v":0},{"$f":"IF('【調査票 07】乳児院'!$AY$40=FALSE,0,1)","v":0},{"$f":"IF('【調査票 07】乳児院'!$BK$40=FALSE,0,1)","v":0},{"$f":"IF('【調査票 07】乳児院'!$S$42=FALSE,0,1)","v":0},{"$f":"IF('【調査票 07】乳児院'!$AI$42=FALSE,0,1)","v":0},{"$f":"IF('【調査票 07】乳児院'!$AY$42=FALSE,0,1)","v":0},{"$f":"IF('【調査票 07】乳児院'!$S$44=FALSE,0,1)","v":0},{"$f":"IF('【調査票 07】乳児院'!$AF$44=FALSE,0,1)","v":0},{"$f":"IF('【調査票 07】乳児院'!$AR$44=FALSE,0,1)","v":0},{"$f":"IF('【調査票 07】乳児院'!$AZ$44=FALSE,0,1)","v":0},{"$f":"IF('【調査票 07】乳児院'!$BJ$44=FALSE,0,1)","v":0},{"$f":"IF('【調査票 07】乳児院'!$BV$44=FALSE,0,1)","v":0},{"$f":"IF('【調査票 07】乳児院'!$CF$44=FALSE,0,1)","v":0},{"$f":"'【調査票 07】乳児院'!$S$47","v":0},{"$f":"'【調査票 07】乳児院'!$AX$46","v":0},{"$f":"'【調査票 07】乳児院'!$AX$53","v":0},{"$f":"'【調査票 07】乳児院'!$S$59","v":0},{"$f":"IF('【調査票 07】乳児院'!$S$61=FALSE,0,1)","v":0},{"$f":"IF('【調査票 07】乳児院'!$AC$61=FALSE,0,1)","v":0},{"$f":"IF('【調査票 07】乳児院'!$AN$61=FALSE,0,1)","v":0},{"$f":"IF('【調査票 07】乳児院'!$AZ$61=FALSE,0,1)","v":0},{"$f":"IF('【調査票 07】乳児院'!$BL$61=FALSE,0,1)","v":0},{"$f":"IF('【調査票 07】乳児院'!$S$63=FALSE,0,1)","v":0},{"$f":"IF('【調査票 07】乳児院'!$AC$63=FALSE,0,1)","v":0},{"$f":"IF('【調査票 07】乳児院'!$AN$63=FALSE,0,1)","v":0},{"$f":"IF('【調査票 07】乳児院'!$AZ$63=FALSE,0,1)","v":0},{"$f":"IF('【調査票 07】乳児院'!$BL$63=FALSE,0,1)","v":0},{"$f":"IF('【調査票 07】乳児院'!$S$65=FALSE,0,1)","v":0},{"$f":"IF('【調査票 07】乳児院'!$AC$65=FALSE,0,1)","v":0},{"$f":"IF('【調査票 07】乳児院'!$AZ$65=FALSE,0,1)","v":0},{"$f":"IF('【調査票 07】乳児院'!$BL$65=FALSE,0,1)","v":0},{"$f":"IF('【調査票 07】乳児院'!$S$67=FALSE,0,1)","v":0},{"$f":"IF('【調査票 07】乳児院'!$AC$67=FALSE,0,1)","v":0},{"$f":"IF('【調査票 07】乳児院'!$AN$67=FALSE,0,1)","v":0},{"$f":"IF('【調査票 07】乳児院'!$AZ$67=FALSE,0,1)","v":0},{"$f":"IF('【調査票 07】乳児院'!$BL$67=FALSE,0,1)","v":0},{"$f":"IF('【調査票 07】乳児院'!$S$69=FALSE,0,1)","v":0},{"$f":"IF('【調査票 07】乳児院'!$AN$69=FALSE,0,1)","v":0},{"$f":"IF('【調査票 07】乳児院'!$AZ$69=FALSE,0,1)","v":0},{"$f":"IF('【調査票 07】乳児院'!$BL$69=FALSE,0,1)","v":0},{"$f":"IF('【調査票 07】乳児院'!$S$71=FALSE,0,1)","v":0},{"$f":"IF('【調査票 07】乳児院'!$AN$71=FALSE,0,1)","v":0},{"$f":"IF('【調査票 07】乳児院'!$BL$71=FALSE,0,1)","v":0},{"$f":"IF('【調査票 07】乳児院'!$S$73=FALSE,0,1)","v":0},{"$f":"'【調査票 07】乳児院'!$Y$73","v":0},{"$f":"'【調査票 07】乳児院'!$BQ$74","v":0},{"$f":"'【調査票 07】乳児院'!$S$77","v":0},{"$f":"IF('【調査票 07】乳児院'!$BI$77=FALSE,0,1)","v":0},{"$f":"IF('【調査票 07】乳児院'!$BT$77=FALSE,0,1)","v":0},{"$f":"IF('【調査票 07】乳児院'!$BI$79=FALSE,0,1)","v":0},{"$f":"IF('【調査票 07】乳児院'!$BT$79=FALSE,0,1)","v":0},{"$f":"'【調査票 07】乳児院'!$Z$82","v":0},{"$f":"'【調査票 07】乳児院'!$S$86","v":0},{"$f":"'【調査票 07】乳児院'!$S$89","v":0}]

{"sheet":"02【調査票 07】乳児院(2)","index":2,"n_rows":51,"n_cols":68,"rows_kept":51,"cut":false,"hidden":true,"merged":[[38,1,40,15],[42,1,42,15],[42,17,43,88],[43,1,43,15],[46,1,48,15],[18,1,30,15],[34,1,36,15],[34,42,34,52],[35,42,35,52],[36,42,36,52],[3,4,15,15],[3,36,7,46],[9,36,15,46],[16,4,16,15],[3,1,16,3]]}
[]
[]
[]
[null,"入所時の家庭の状況",null,null,"(9)\n保護者の状況",null,null,null,null,null,null,null,null,null,null,null,null,null,null,null,null,null,null,null,null,null,null,null,null,null,null,null,null,null,null,null,"(9)の両親又は父母のどちらかありの補問",null,null,null,null,null,null,null,null,null,null,null,"1 実父母あり　　 2 実父のみ　　 3 実母のみ 　　4 実　　父"]
[null,null,null,null,null,null,null,null,null,null,null,null,null,null,null,null,null,"1  両親又は父母の",null,null,null,null,null,null,null,null,null,null,null,null,null,null,null,null,null,null,null,null,null,null,null,null,null,null,null,null,null,null," 　　　　　　　　　　　　　　　　　　　　　　　　養(継)母"]
[null,null,null,null,null,null,null,null,null,null,null,null,null,null,null,null,null,"   どちらかあり"]
[null,null,null,null,null,null,null,null,null,null,null,null,null,null,null,null,null,null,null,null,null,null,null,null,null,null,null,null,null,null,null,null,null,null,null,null,null,null,null,null,null,null,null,null,null,null,null,null,"5 養(継)父　 　　6 養(継)父　　 7 養(継)父　 　8 養(継)母"]
[null,null,null,null,null,null,null,null,null,null,null,null,null,null,null,null,null,null,null,null,null,null,null,null,null,null,null,null,null,null,null,null,null,null,null,null,null,null,null,null,null,null,null,null,null,null,null,null,"　実　　母　　 　　養(継)母　　　 の　　み　　 　の　　み"]
[]
[null,null,null,null,null,null,null,null,null,null,null,null,null,null,null,null,null,null,null,null,null,null,null,null,null,null,null,null,null,null,null,null,null,null,null,null,"(9)の両親ともいない又は不明の補問"]
[null,null,null,null,null,null,null,null,null,null,null,null,null,null,null,null,null,"2  両親ともいない",null,null,null,null,null,null,null,null,null,null,null,null,null,null,null,null,null,null,null,null,null,null,null,null,null,null,null,null,null,null,"01 祖父母　　　02 養(継)父母の親　　03 兄・姉　　04 義兄・義姉"]
[]
[null,null,null,null,null,null,null,null,null,null,null,null,null,null,null,null,null,null,null,null,null,null,null,null,null,null,null,null,null,null,null,null,null,null,null,null,null,null,null,null,null,null,null,null,null,null,null,null,"05 伯(叔)父母　06 義伯(叔)父母　　　07 里　親　　08 その他"]
[null,null,null,null,null,null,null,null,null,null,null,null,null,null,null,null,null,"3  両親とも不明"]
[null,null,null,null,null,null,null,null,null,null,null,null,null,null,null,null,null,null,null,null,null,null,null,null,null,null,null,null,null,null,null,null,null,null,null,null,null,null,null,null,null,null,null,null,null,null,null,null,"09 な　し　　　10 不　明"]
[]
[null,null,null,null,"(10)\n課税状況",null,null,null,null,null,null,null,null,null,null,null,null,null,"1　生活保護受給",null,null,null,null,null,null,null,null,null,null,null,null,null,null,null,null,"2　所得税課税",null,null,null,null,null,null,null,null,null,null,null,null,null,null,null,null,"3　その他",null,null,null,null,null,null,null,null,null,null,null,null,null,null,"4　不明"]
[]
[null,"(11)\n家庭の養護問題\n\n（複数回答可）",null,null,null,null,null,null,null,null,null,null,null,null,null,null,null,null,"01 父の死亡　　　02 母の死亡　　　　　03 父の行方不明　　　04 母の行方不明　　　05 父母の離婚　　"]
[]
[null,null,null,null,null,null,null,null,null,null,null,null,null,null,null,null,null,null,"06 両親の未婚　　07 父母の不和　　　　08 父の拘禁　　　 　 09 母の拘禁　　　　　10 父の入院"]
[]
[null,null,null,null,null,null,null,null,null,null,null,null,null,null,null,null,null,null,"11 母の入院 　　 12 家族の疾病の付き添い　　　　　　　　　 13 次子出産　　　　　14 父の就労　　"]
[]
[null,null,null,null,null,null,null,null,null,null,null,null,null,null,null,null,null,null,"15 母の就労　　　16 父の精神疾患等　　17 母の精神疾患等    18 父の放任・怠だ    19 母の放任・怠だ"]
[]
[null,null,null,null,null,null,null,null,null,null,null,null,null,null,null,null,null,null,"20 父の虐待・酷使　　                 21 母の虐待・酷使    22 棄児　      　　　23 養育拒否"]
[]
[null,null,null,null,null,null,null,null,null,null,null,null,null,null,null,null,null,null,"24 破産等の経済的理由                 25 児童の問題による監護困難　　　　　　　 26　児童の障害"]
[]
[null,null,null,null,null,null,null,null,null,null,null,null,null,null,null,null,null,null,"27 その他(　　　　　　　　　　)"]
[null,null,null,null,null,null,null,null,null,null,null,null,null,null,null,null,null,null,null,null,null,null,null,null,null,null,null,null,null,null,null,null,null,null,null,null,null,null,null,null,null,null,null,null,null,null,"選択したもののうち、主な理由１つ"]
[]
[]
[null,"(12)\n被虐待経験の状況",null,null,null,null,null,null,null,null,null,null,null,null,null,null,"　1　あり",null,null,null,null,null,null,null,null,null,null,null,null,null,null,null,null,null,null,null,null,null,null,null,null,null,"(13)の補問",null,null,null,null,null,null,null,null,null,null,null,null,null,null,null,null,null,"1　身体的虐待　　　　2　性的虐待"]
[null,null,null,null,null,null,null,null,null,null,null,null,null,null,null,null,null,null,null,null,null,null,null,null,null,null,null,null,null,null,null,null,null,null,null,null,null,null,null,null,null,null,"　虐待の種類"]
[null,null,null,null,null,null,null,null,null,null,null,null,null,null,null,null,"　2　なし　　　　　3　不明",null,null,null,null,null,null,null,null,null,null,null,null,null,null,null,null,null,null,null,null,null,null,null,null,null,"（複数回答可）",null,null,null,null,null,null,null,null,null,null,null,null,null,null,null,null,null,"3　ネグレクト　　　　4　心理的虐待"]
[]
[null,"(13)\n現在の家族との関係"]
[null,null,null,null,null,null,null,null,null,null,null,null,null,null,null,null,null,"交流あり　（  1 電話・メール・手紙　      2 面会　     3 一時帰宅  ）       　　4 交流なし　"]
[]
[]
[null,"(13)の補問",null,null,null,null,null,null,null,null,null,null,null,null,null,null,null,"1　月に１回以上　　　2　年に２～１１回　　　3　年に１回ぐらい"]
[null,"家族との交流の頻度"]
[]
[]
[null,"(14)\n児童の今後の見通し",null,null,null,null,null,null,null,null,null,null,null,null,null,null,null,"1　保護者のもとへ復帰　　　       2　親類等の家庭への引き取り　　       3　現在の乳児院で養育"]
[]
[null,null,null,null,null,null,null,null,null,null,null,null,null,null,null,null,null,"4　児童養護施設へ                 5  母子生活支援施設へ                 6　養子縁組"]
[]
[null,null,null,null,null,null,null,null,null,null,null,null,null,null,null,null,null,"7  里親・ファミリーホーム委託     8　他施設へ移行予定（4,5の施設を除く）　　9　その他　 　　　　 "]